[Event "*** Titled Tuesday 3|2 Blitz"]
[Site "Chess.com"]
[Date "2015.01.27"]
[Round "3"]
[White "VovAn1991"]
[Black "MinhGTrAn"]
[Result "1-0"]
[WhiteElo "2458"]
[BlackElo "2438"]
[TimeControl "180+2"]
[EndTime "11:44:16 PST"]
[Termination "VovAn1991 won by resignation"]

1. g3 {[%clk 0:02:54.3]} 1... d5 {[%clk 0:02:58.9]} 2. Bg2 {[%clk 0:02:55]} 2...
Nf6 {[%clk 0:03:00.5]} 3. d3 {[%clk 0:02:55.1]} 3... Bf5 {[%clk 0:03:00.8]} 4.
f4 {[%clk 0:02:55.3]} 4... c6 {[%clk 0:03:00.1]} 5. Nf3 {[%clk 0:02:55.9]} 5...
e6 {[%clk 0:03:00.7]} 6. O-O {[%clk 0:02:56.8]} 6... h6 {[%clk 0:03:02.2]} 7. c3
{[%clk 0:02:50.2]} 7... Nbd7 {[%clk 0:02:56.6]} 8. Kh1 {[%clk 0:02:50.9]} 8...
Qb6 {[%clk 0:02:51.6]} 9. Na3 {[%clk 0:02:48.6]} 9... Bxa3 {[%clk 0:02:48.8]}
10. bxa3 {[%clk 0:02:50.5]} 10... Qc5 {[%clk 0:02:31.2]} 11. Qb3 {[%clk
0:02:46.7]} 11... Nb6 {[%clk 0:02:19.2]} 12. a4 {[%clk 0:02:46.8]} 12... Qa5
{[%clk 0:02:19.3]} 13. Nd4 {[%clk 0:02:42.9]} 13... Qxa4 {[%clk 0:02:15]} 14.
Nxf5 {[%clk 0:02:41.7]} 14... exf5 {[%clk 0:02:16.3]} 15. Ba3 {[%clk 0:02:30.7]}
15... Qxb3 {[%clk 0:02:05.5]} 16. axb3 {[%clk 0:02:32.6]} 16... Kd7 {[%clk
0:02:07.1]} 17. Bc5 {[%clk 0:02:33.3]} 17... Nc8 {[%clk 0:02:08]} 18. Bd4 {[%clk
0:02:34.2]} 18... Ne8 {[%clk 0:02:05.5]} 19. Bh3 {[%clk 0:02:34.2]} 19... Ncd6
{[%clk 0:01:44.3]} 20. e4 {[%clk 0:02:34.9]} 20... Nb5 {[%clk 0:00:47.9]} 21.
Bxf5+ {[%clk 0:02:27]} 21... Kd8 {[%clk 0:00:49.4]} 22. Bb6+ {[%clk 0:02:24.4]}
22... Ke7 {[%clk 0:00:29.6]} 23. c4 {[%clk 0:02:25.1]} 23... Ned6 {[%clk
0:00:19.4]} 24. Bc5 {[%clk 0:02:22.7]} 24... b6 {[%clk 0:00:20.5]} 25. Bf2
{[%clk 0:02:05.6]} 25... Nxf5 {[%clk 0:00:16.6]} 26. cxb5 {[%clk 0:02:05.6]}
26... Nd6 {[%clk 0:00:18.2]} 27. bxc6 {[%clk 0:02:05.6]} 27... dxe4 {[%clk
0:00:20.1]} 28. dxe4 {[%clk 0:02:07.2]} 28... Nxe4 {[%clk 0:00:22]} 29. Bd4
{[%clk 0:02:07.9]} 29... Rhc8 {[%clk 0:00:20.6]} 30. Rac1 {[%clk 0:01:59.2]}
30... g6 {[%clk 0:00:17]} 31. f5 {[%clk 0:01:56.5]} 31... Nd2 {[%clk 0:00:14.7]}
32. Rfe1+ {[%clk 0:01:55.9]} 32... Kd6 {[%clk 0:00:16.2]} 33. Rc3 {[%clk
0:01:50.3]} 33... gxf5 {[%clk 0:00:07.9]} 34. Be5+ {[%clk 0:01:41.1]} 34... Ke6
{[%clk 0:00:09.3]} 35. Bf4+ {[%clk 0:01:26.6]} 35... Ne4 {[%clk 0:00:11.1]} 36.
c7 {[%clk 0:01:28.3]} 36... h5 {[%clk 0:00:11.2]} 37. Kg2 {[%clk 0:01:25.5]}
37... b5 {[%clk 0:00:06.3]} 38. Rc6+ {[%clk 0:01:18.4]} 38... Kd5 {[%clk
0:00:07.3]} 39. Ra6 {[%clk 0:01:14.7]} 39... Kd4 {[%clk 0:00:05.6]} 40. Rc6
{[%clk 0:01:12.3]} 40... a5 {[%clk 0:00:06.4]} 41. Rd1+ {[%clk 0:01:11.5]} 1-0

[Event "*** Titled Tuesday 3|2 Blitz"]
[Site "Chess.com"]
[Date "2015.01.27"]
[Round "3"]
[White "stepanosinovsky"]
[Black "alturas_pacificas"]
[Result "1-0"]
[WhiteElo "2241"]
[BlackElo "2116"]
[TimeControl "180+2"]
[EndTime "11:44:49 PST"]
[Termination "stepanosinovsky won by checkmate"]

1. e4 {[%clk 0:03:00]} 1... c6 {[%clk 0:02:58.2]} 2. d3 {[%clk 0:02:59.4]} 2...
d5 {[%clk 0:02:53.2]} 3. Nd2 {[%clk 0:03:01.3]} 3... dxe4 {[%clk 0:02:53.3]} 4.
dxe4 {[%clk 0:03:02.4]} 4... Qc7 {[%clk 0:02:54.9]} 5. Ngf3 {[%clk 0:03:03]}
5... e5 {[%clk 0:02:54.4]} 6. Bc4 {[%clk 0:03:03.2]} 6... a5 {[%clk 0:02:55.8]}
7. a4 {[%clk 0:03:03.1]} 7... h6 {[%clk 0:02:54.8]} 8. O-O {[%clk 0:03:03.6]}
8... Nf6 {[%clk 0:02:55.7]} 9. c3 {[%clk 0:02:53.8]} 9... Bg4 {[%clk 0:02:55.7]}
10. h3 {[%clk 0:02:45.9]} 10... Bxf3 {[%clk 0:02:57.1]} 11. Nxf3 {[%clk
0:02:40.9]} 11... Nbd7 {[%clk 0:02:59]} 12. Qe2 {[%clk 0:02:31.1]} 12... Be7
{[%clk 0:02:59.7]} 13. Nh4 {[%clk 0:02:27]} 13... g6 {[%clk 0:02:48.7]} 14. g3
{[%clk 0:01:58.1]} 14... Kf8 {[%clk 0:02:49.6]} 15. f4 {[%clk 0:01:42.7]} 15...
Kg7 {[%clk 0:02:49.7]} 16. Nf3 {[%clk 0:01:35.2]} 16... Rad8 {[%clk 0:02:42.7]}
17. Kg2 {[%clk 0:01:34.9]} 17... Rhe8 {[%clk 0:02:35.6]} 18. f5 {[%clk
0:01:17.9]} 18... g5 {[%clk 0:02:34.5]} 19. Be3 {[%clk 0:01:17.5]} 19... Bc5
{[%clk 0:02:28.4]} 20. Bd2 {[%clk 0:01:14.8]} 20... Nf8 {[%clk 0:02:19.9]} 21.
Rae1 {[%clk 0:01:01]} 21... N8h7 {[%clk 0:02:20]} 22. Bc1 {[%clk 0:00:56.5]}
22... Rd7 {[%clk 0:02:16.7]} 23. g4 {[%clk 0:00:52.2]} 23... Red8 {[%clk
0:02:15.7]} 24. Rh1 {[%clk 0:00:51.8]} 24... Qb8 {[%clk 0:02:00.3]} 25. h4
{[%clk 0:00:52.4]} 25... Nxg4 {[%clk 0:01:54.5]} 26. hxg5 {[%clk 0:00:52.6]}
26... b5 {[%clk 0:01:06.5]} 27. Ba2 {[%clk 0:00:41.1]} 27... bxa4 {[%clk
0:01:06]} 28. f6+ {[%clk 0:00:26.8]} 28... Kg8 {[%clk 0:00:48.4]} 29. Rh4 {[%clk
0:00:24.6]} 29... Ne3+ {[%clk 0:00:19.6]} 30. Bxe3 {[%clk 0:00:23.9]} 30... Bxe3
{[%clk 0:00:21.5]} 31. Qxe3 {[%clk 0:00:24.8]} 31... Qxb2+ {[%clk 0:00:23.1]}
32. Re2 {[%clk 0:00:25.9]} 32... Qa1 {[%clk 0:00:12]} 33. Rxh6 {[%clk
0:00:26.6]} 33... Rd1 {[%clk 0:00:11.9]} 34. Qf2 {[%clk 0:00:21]} 34... Nxg5
{[%clk 0:00:10.8]} 35. Nxg5 {[%clk 0:00:21]} 35... R1d2 {[%clk 0:00:08.2]} 36.
Bxf7+ {[%clk 0:00:21]} 36... Kf8 {[%clk 0:00:07.8]} 37. Rh8# {[%clk 0:00:22.6]}
1-0

[Event "*** Titled Tuesday 3|2 Blitz"]
[Site "Chess.com"]
[Date "2015.01.27"]
[Round "3"]
[White "Max_Schachmann"]
[Black "oggy1984"]
[Result "1-0"]
[WhiteElo "2406"]
[BlackElo "2190"]
[TimeControl "180+2"]
[EndTime "11:45:10 PST"]
[Termination "Max_Schachmann won on time"]

1. e4 {[%clk 0:03:00]} 1... e5 {[%clk 0:02:46.2]} 2. Nf3 {[%clk 0:02:57.2]} 2...
Nc6 {[%clk 0:02:46.2]} 3. Bb5 {[%clk 0:02:57.9]} 3... a6 {[%clk 0:02:47.1]} 4.
Ba4 {[%clk 0:02:59.2]} 4... d6 {[%clk 0:02:48.1]} 5. h3 {[%clk 0:02:58.8]} 5...
Bd7 {[%clk 0:02:49.1]} 6. O-O {[%clk 0:02:57.6]} 6... Nf6 {[%clk 0:02:49.7]} 7.
Re1 {[%clk 0:02:58.5]} 7... b5 {[%clk 0:02:42.3]} 8. Bb3 {[%clk 0:02:59.2]} 8...
Na5 {[%clk 0:02:43.2]} 9. c3 {[%clk 0:02:59.7]} 9... Nxb3 {[%clk 0:02:43.9]} 10.
axb3 {[%clk 0:03:01.6]} 10... Be7 {[%clk 0:02:44.6]} 11. d4 {[%clk 0:03:02.6]}
11... Bc6 {[%clk 0:02:37.6]} 12. d5 {[%clk 0:03:03.5]} 12... Bb7 {[%clk
0:02:35.6]} 13. Bg5 {[%clk 0:02:59.4]} 13... O-O {[%clk 0:02:35.8]} 14. Bxf6
{[%clk 0:02:57.9]} 14... Bxf6 {[%clk 0:02:36.5]} 15. b4 {[%clk 0:02:59.5]} 15...
c6 {[%clk 0:02:37.9]} 16. dxc6 {[%clk 0:02:59.3]} 16... Bxc6 {[%clk 0:02:39]}
17. Nbd2 {[%clk 0:03:00.8]} 17... Re8 {[%clk 0:02:26.2]} 18. Nb3 {[%clk
0:02:59.9]} 18... d5 {[%clk 0:02:27.1]} 19. Na5 {[%clk 0:02:52.1]} 19... dxe4
{[%clk 0:02:09]} 20. Nd2 {[%clk 0:02:53]} 20... Bd5 {[%clk 0:02:04.1]} 21. Nxe4
{[%clk 0:02:52.1]} 21... Be7 {[%clk 0:02:02.8]} 22. Nc5 {[%clk 0:02:44.8]} 22...
f6 {[%clk 0:01:51.6]} 23. Qg4 {[%clk 0:02:30.3]} 23... Bxc5 {[%clk 0:01:48.1]}
24. bxc5 {[%clk 0:02:30.4]} 24... Qc7 {[%clk 0:01:48.7]} 25. b4 {[%clk
0:02:28.5]} 25... Rad8 {[%clk 0:01:48.7]} 26. Rad1 {[%clk 0:02:25.5]} 26... Bf7
{[%clk 0:01:28.5]} 27. Qf3 {[%clk 0:02:17.2]} 27... e4 {[%clk 0:01:15.8]} 28.
Qe3 {[%clk 0:02:16.9]} 28... f5 {[%clk 0:01:10.4]} 29. Qg5 {[%clk 0:02:10.8]}
29... g6 {[%clk 0:00:59.8]} 30. Qf6 {[%clk 0:02:05.4]} 30... h6 {[%clk
0:00:23.4]} 31. Qxa6 {[%clk 0:01:48.8]} 31... f4 {[%clk 0:00:16.9]} 32. Qxb5
{[%clk 0:01:41.3]} 32... e3 {[%clk 0:00:13.8]} 33. fxe3 {[%clk 0:01:35.3]} 33...
fxe3 {[%clk 0:00:13.2]} 34. Rd3 {[%clk 0:00:55.2]} 34... e2 {[%clk 0:00:09.8]}
35. Rxe2 {[%clk 0:00:56.1]} 35... Qf4 {[%clk 0:00:05]} 36. Rxd8 {[%clk
0:00:46.4]} 36... Rxd8 {[%clk 0:00:05.1]} 37. Rf2 {[%clk 0:00:42.4]} 37... Rd1+
{[%clk 0:00:05.1]} 38. Rf1 {[%clk 0:00:43.4]} 38... Qe3+ {[%clk 0:00:05.4]} 39.
Kh1 {[%clk 0:00:44.3]} 39... Qc1 {[%clk 0:00:03.6]} 40. Rxd1 {[%clk 0:00:43.8]}
40... Qxd1+ {[%clk 0:00:05.5]} 41. Kh2 {[%clk 0:00:45.5]} 41... Bd5 {[%clk
0:00:04.4]} 42. Qe8+ {[%clk 0:00:45.1]} 42... Kg7 {[%clk 0:00:05.3]} 43. Qe5+
{[%clk 0:00:45.1]} 43... Kf7 {[%clk 0:00:05.8]} 44. Qf4+ {[%clk 0:00:42.9]}
44... Kg7 {[%clk 0:00:06.8]} 45. c6 {[%clk 0:00:42.9]} 1-0

[Event "*** Titled Tuesday 3|2 Blitz"]
[Site "Chess.com"]
[Date "2015.01.27"]
[Round "3"]
[White "Kacparov"]
[Black "WanderingPuppet"]
[Result "1-0"]
[WhiteElo "2369"]
[BlackElo "2116"]
[TimeControl "180+2"]
[EndTime "11:46:21 PST"]
[Termination "Kacparov won on time"]

1. b3 {[%clk 0:03:00]} 1... c5 {[%clk 0:02:57.1]} 2. Bb2 {[%clk 0:03:01.1]} 2...
Nc6 {[%clk 0:02:56.4]} 3. e3 {[%clk 0:03:01.4]} 3... Nf6 {[%clk 0:02:58]} 4. f4
{[%clk 0:03:02.2]} 4... e6 {[%clk 0:02:59.2]} 5. Nf3 {[%clk 0:03:03.4]} 5... Be7
{[%clk 0:03:00.8]} 6. Bb5 {[%clk 0:03:01.9]} 6... O-O {[%clk 0:03:01.6]} 7. O-O
{[%clk 0:03:02.7]} 7... a6 {[%clk 0:03:02.3]} 8. Bxc6 {[%clk 0:03:03.4]} 8...
bxc6 {[%clk 0:03:02.2]} 9. d3 {[%clk 0:03:02.2]} 9... d5 {[%clk 0:03:01]} 10.
Nbd2 {[%clk 0:03:02.4]} 10... Rb8 {[%clk 0:02:44.3]} 11. Ne5 {[%clk 0:03:02.9]}
11... Qb6 {[%clk 0:02:41.5]} 12. Qf3 {[%clk 0:03:01.6]} 12... Nd7 {[%clk
0:02:33.9]} 13. Qg3 {[%clk 0:02:40.9]} 13... f6 {[%clk 0:02:29.7]} 14. Nxd7
{[%clk 0:02:38.8]} 14... Bxd7 {[%clk 0:02:31.6]} 15. Kh1 {[%clk 0:02:39.7]}
15... Qc7 {[%clk 0:02:27]} 16. e4 {[%clk 0:02:38]} 16... Rf7 {[%clk 0:02:18.7]}
17. Bc3 {[%clk 0:02:29.8]} 17... Rbf8 {[%clk 0:02:12.4]} 18. Rae1 {[%clk
0:02:26.5]} 18... Bd6 {[%clk 0:02:11]} 19. h3 {[%clk 0:02:10.4]} 19... Kh8
{[%clk 0:01:46.2]} 20. Qh4 {[%clk 0:02:00.4]} 20... Be7 {[%clk 0:01:21.2]} 21.
Qh5 {[%clk 0:01:51.2]} 21... Bd6 {[%clk 0:01:17]} 22. e5 {[%clk 0:01:40.9]}
22... Be7 {[%clk 0:00:55.4]} 23. f5 {[%clk 0:01:41.5]} 23... fxe5 {[%clk
0:00:48.5]} 24. fxe6 {[%clk 0:01:42.4]} 24... Rxf1+ {[%clk 0:00:45.5]} 25. Rxf1
{[%clk 0:01:42.4]} 25... Bxe6 {[%clk 0:00:29.6]} 26. Bxe5 {[%clk 0:01:41.5]}
26... Rxf1+ {[%clk 0:00:19.7]} 27. Nxf1 {[%clk 0:01:40.7]} 27... Qd8 {[%clk
0:00:21.3]} 28. Qh6 {[%clk 0:01:31]} 28... Bf6 {[%clk 0:00:22.3]} 29. Bxf6
{[%clk 0:01:30.3]} 29... Qxf6 {[%clk 0:00:22.9]} 30. Qxf6 {[%clk 0:01:31.3]}
30... gxf6 {[%clk 0:00:24.8]} 31. Nd2 {[%clk 0:01:25.6]} 31... Kg7 {[%clk
0:00:23.8]} 32. Kh2 {[%clk 0:01:25.3]} 32... Kf7 {[%clk 0:00:22.6]} 33. Kg3
{[%clk 0:01:26.4]} 33... Kg6 {[%clk 0:00:23.8]} 34. Kf4 {[%clk 0:01:26.1]} 34...
h5 {[%clk 0:00:23.7]} 35. c3 {[%clk 0:01:23.2]} 35... Bf5 {[%clk 0:00:21.8]} 36.
d4 {[%clk 0:01:23.3]} 36... cxd4 {[%clk 0:00:20.8]} 37. cxd4 {[%clk 0:01:25.2]}
37... Bd3 {[%clk 0:00:21.4]} 38. g3 {[%clk 0:01:21.4]} 38... a5 {[%clk
0:00:14.7]} 39. a3 {[%clk 0:01:17.8]} 39... Be2 {[%clk 0:00:13.3]} 40. b4 {[%clk
0:00:56.5]} 40... axb4 {[%clk 0:00:13.7]} 41. axb4 {[%clk 0:00:58.4]} 41... Kf7
{[%clk 0:00:12.7]} 42. Nb3 {[%clk 0:00:57.5]} 42... Kg6 {[%clk 0:00:09.6]} 43.
Nc5 {[%clk 0:00:58]} 43... Bf1 {[%clk 0:00:10.3]} 44. h4 {[%clk 0:00:54.6]}
44... Bb5 {[%clk 0:00:09.4]} 45. Ne6 {[%clk 0:00:51.2]} 45... Ba4 {[%clk
0:00:07.8]} 46. Nd8 {[%clk 0:00:44]} 46... Bb5 {[%clk 0:00:08]} 47. Nb7 {[%clk
0:00:45]} 47... Ba4 {[%clk 0:00:08]} 48. Nd6 {[%clk 0:00:46]} 48... Bd1 {[%clk
0:00:06.8]} 49. Nc8 {[%clk 0:00:45.1]} 49... Ba4 {[%clk 0:00:07.5]} 50. Ne7+
{[%clk 0:00:46.3]} 50... Kf7 {[%clk 0:00:08.5]} 51. Nf5 {[%clk 0:00:47.5]} 51...
Kg6 {[%clk 0:00:09.5]} 52. Ne3 {[%clk 0:00:43.2]} 52... Bb5 {[%clk 0:00:08.4]}
53. g4 {[%clk 0:00:44]} 53... hxg4 {[%clk 0:00:09.3]} 54. Nxg4 {[%clk
0:00:45.1]} 54... Be2 {[%clk 0:00:09.2]} 55. Ne3 {[%clk 0:00:43.7]} 55... Kh5
{[%clk 0:00:09]} 56. Kf5 {[%clk 0:00:36.7]} 56... Kxh4 {[%clk 0:00:08.1]} 57.
Kxf6 {[%clk 0:00:38]} 57... Kg3 {[%clk 0:00:09.1]} 58. Ke5 {[%clk 0:00:39.1]}
58... Kf3 {[%clk 0:00:08.9]} 59. Nf5 {[%clk 0:00:37.8]} 59... Bd3 {[%clk
0:00:08.6]} 60. Ne7 {[%clk 0:00:38]} 60... Bb5 {[%clk 0:00:07.2]} 61. Kd6 {[%clk
0:00:39.2]} 61... Ke3 {[%clk 0:00:06.3]} 62. Kc5 {[%clk 0:00:40.5]} 62... Kd3
{[%clk 0:00:04.9]} 63. Nxc6 {[%clk 0:00:37]} 1-0

[Event "*** Titled Tuesday 3|2 Blitz"]
[Site "Chess.com"]
[Date "2015.01.27"]
[Round "3"]
[White "AkshatChandra"]
[Black "HansCoolNiemann"]
[Result "1-0"]
[WhiteElo "2141"]
[BlackElo "1705"]
[TimeControl "180+2"]
[EndTime "11:47:47 PST"]
[Termination "AkshatChandra won by checkmate"]

1. e4 {[%clk 0:03:00]} 1... d5 {[%clk 0:02:58.2]} 2. exd5 {[%clk 0:03:00.8]}
2... Qxd5 {[%clk 0:03:00.1]} 3. Nc3 {[%clk 0:03:01.3]} 3... Qd6 {[%clk 0:03:01]}
4. d4 {[%clk 0:03:02]} 4... c6 {[%clk 0:03:02]} 5. Nf3 {[%clk 0:03:00.1]} 5...
Bg4 {[%clk 0:03:02.2]} 6. Be3 {[%clk 0:03:01.8]} 6... Nd7 {[%clk 0:03:02]} 7. h3
{[%clk 0:03:03.3]} 7... Bh5 {[%clk 0:03:02.3]} 8. g4 {[%clk 0:02:59.6]} 8... Bg6
{[%clk 0:03:00.3]} 9. Qd2 {[%clk 0:02:57.3]} 9... Ngf6 {[%clk 0:03:00.9]} 10.
O-O-O {[%clk 0:02:52.6]} 10... e6 {[%clk 0:03:01]} 11. Bf4 {[%clk 0:02:38.2]}
11... Qb4 {[%clk 0:03:00.4]} 12. Ne5 {[%clk 0:02:19.2]} 12... Nd5 {[%clk
0:02:00.5]} 13. Nxd5 {[%clk 0:02:13.5]} 13... Qxd2+ {[%clk 0:01:57]} 14. Rxd2
{[%clk 0:02:10]} 14... exd5 {[%clk 0:01:54]} 15. Nxd7 {[%clk 0:01:55.6]} 15...
Kxd7 {[%clk 0:01:53.9]} 16. h4 {[%clk 0:01:53.7]} 16... Bd6 {[%clk 0:01:46.5]}
17. Be3 {[%clk 0:01:43.2]} 17... Be4 {[%clk 0:01:40.8]} 18. Rh3 {[%clk
0:01:37.9]} 18... f5 {[%clk 0:01:41.3]} 19. gxf5 {[%clk 0:01:25]} 19... Bxf5
{[%clk 0:01:41.5]} 20. Rf3 {[%clk 0:01:21]} 20... g6 {[%clk 0:01:41.7]} 21. Bd3
{[%clk 0:01:08.8]} 21... Bxd3 {[%clk 0:01:31.4]} 22. Rxd3 {[%clk 0:01:10.7]}
22... Rhf8 {[%clk 0:01:30.8]} 23. Bh6 {[%clk 0:01:11.5]} 23... Rf5 {[%clk
0:01:27.1]} 24. Rxf5 {[%clk 0:01:11.4]} 24... gxf5 {[%clk 0:01:29]} 25. Rf3
{[%clk 0:01:08.8]} 25... Ke6 {[%clk 0:01:18.7]} 26. Re3+ {[%clk 0:01:09]} 26...
Kf7 {[%clk 0:01:18.6]} 27. Rb3 {[%clk 0:01:03.9]} 27... Kg6 {[%clk 0:01:12.7]}
28. Bg5 {[%clk 0:00:55.9]} 28... h6 {[%clk 0:01:11.6]} 29. Bd2 {[%clk
0:00:54.5]} 29... b6 {[%clk 0:01:12.1]} 30. Rc3 {[%clk 0:00:52.4]} 30... Rc8
{[%clk 0:01:07.3]} 31. Re3 {[%clk 0:00:51.6]} 31... Kf6 {[%clk 0:00:58.4]} 32.
Rf3 {[%clk 0:00:46.2]} 32... Rh8 {[%clk 0:00:51]} 33. Rc3 {[%clk 0:00:41.5]}
33... c5 {[%clk 0:00:48.9]} 34. dxc5 {[%clk 0:00:41.7]} 34... Bxc5 {[%clk
0:00:49.6]} 35. Rd3 {[%clk 0:00:38.3]} 35... Bxf2 {[%clk 0:00:36.2]} 36. Bc3+
{[%clk 0:00:37.6]} 36... d4 {[%clk 0:00:36.2]} 37. Rxd4 {[%clk 0:00:39.1]} 37...
Ke7 {[%clk 0:00:21.3]} 38. Rd2 {[%clk 0:00:31.2]} 38... Rg8 {[%clk 0:00:21]} 39.
Rxf2 {[%clk 0:00:32.1]} 39... Rg1+ {[%clk 0:00:22.9]} 40. Kd2 {[%clk 0:00:33.1]}
40... Ke6 {[%clk 0:00:24.6]} 41. Re2+ {[%clk 0:00:29.9]} 41... Kf7 {[%clk
0:00:25.2]} 42. Bb4 {[%clk 0:00:29.2]} 42... Rg4 {[%clk 0:00:25]} 43. Ba3 {[%clk
0:00:21.4]} 43... Rxh4 {[%clk 0:00:22.8]} 44. Re7+ {[%clk 0:00:22.5]} 44... Kg6
{[%clk 0:00:23.8]} 45. Rxa7 {[%clk 0:00:24.1]} 45... Rd4+ {[%clk 0:00:24]} 46.
Ke3 {[%clk 0:00:25]} 46... Rc4 {[%clk 0:00:25.1]} 47. c3 {[%clk 0:00:26.4]}
47... h5 {[%clk 0:00:24.9]} 48. Kf3 {[%clk 0:00:25.6]} 48... h4 {[%clk
0:00:25.4]} 49. Bd6 {[%clk 0:00:25.9]} 49... Rc6 {[%clk 0:00:23.1]} 50. Bf4
{[%clk 0:00:26]} 50... Re6 {[%clk 0:00:18.4]} 51. Ra8 {[%clk 0:00:26.8]} 51...
Re1 {[%clk 0:00:18.3]} 52. Rh8 {[%clk 0:00:27.3]} 52... Rf1+ {[%clk 0:00:18.6]}
53. Ke3 {[%clk 0:00:28.3]} 53... Rh1 {[%clk 0:00:18.7]} 54. Kf2 {[%clk
0:00:24.7]} 54... h3 {[%clk 0:00:18.5]} 55. Rh6+ {[%clk 0:00:20.2]} 55... Kg7
{[%clk 0:00:18.7]} 56. Rxb6 {[%clk 0:00:21.9]} 56... Ra1 {[%clk 0:00:16.4]} 57.
a3 {[%clk 0:00:19.7]} 57... Rd1 {[%clk 0:00:04.1]} 58. Rh6 {[%clk 0:00:17.3]}
58... Rh1 {[%clk 0:00:04.3]} 59. b4 {[%clk 0:00:16]} 59... Ra1 {[%clk
0:00:04.6]} 60. Rxh3 {[%clk 0:00:16.3]} 60... Rxa3 {[%clk 0:00:06.2]} 61. Rd3
{[%clk 0:00:09.2]} 61... Rb3 {[%clk 0:00:07.1]} 62. Kf3 {[%clk 0:00:10.7]} 62...
Kf6 {[%clk 0:00:08.2]} 63. Be3 {[%clk 0:00:11.7]} 63... Ke5 {[%clk 0:00:08.4]}
64. Bd4+ {[%clk 0:00:13]} 64... Kd5 {[%clk 0:00:08.7]} 65. Re3 {[%clk
0:00:14.7]} 65... Kc4 {[%clk 0:00:08]} 66. Kf4 {[%clk 0:00:15.7]} 66... Rb1
{[%clk 0:00:08.1]} 67. Kxf5 {[%clk 0:00:16.4]} 67... Rf1+ {[%clk 0:00:09.7]} 68.
Ke6 {[%clk 0:00:17.6]} 68... Rf8 {[%clk 0:00:10.6]} 69. Re5 {[%clk 0:00:17.9]}
69... Re8+ {[%clk 0:00:11.5]} 70. Kd7 {[%clk 0:00:19.4]} 70... Rb8 {[%clk
0:00:11.4]} 71. Rc5+ {[%clk 0:00:20.7]} 71... Kd3 {[%clk 0:00:12.6]} 72. b5
{[%clk 0:00:22]} 72... Rb7+ {[%clk 0:00:13.7]} 73. Kc6 {[%clk 0:00:22.4]} 73...
Rh7 {[%clk 0:00:14.7]} 74. b6 {[%clk 0:00:24.3]} 74... Rh6+ {[%clk 0:00:16.3]}
75. Kb5 {[%clk 0:00:25.5]} 75... Rh7 {[%clk 0:00:17.1]} 76. Rc7 {[%clk 0:00:26]}
76... Rh5+ {[%clk 0:00:18.7]} 77. Bc5 {[%clk 0:00:26.9]} 77... Rh1 {[%clk
0:00:18.1]} 78. b7 {[%clk 0:00:28]} 78... Rb1+ {[%clk 0:00:19.7]} 79. Bb4 {[%clk
0:00:29.4]} 79... Rxb4+ {[%clk 0:00:17.5]} 80. cxb4 {[%clk 0:00:29.2]} 80... Kd4
{[%clk 0:00:15.6]} 81. b8=Q {[%clk 0:00:29.9]} 81... Kd5 {[%clk 0:00:15.9]} 82.
Qd8+ {[%clk 0:00:30.4]} 82... Ke6 {[%clk 0:00:16.7]} 83. Re7+ {[%clk 0:00:31.6]}
83... Kf6 {[%clk 0:00:18.4]} 84. Qf8+ {[%clk 0:00:33.3]} 84... Kg6 {[%clk
0:00:20.3]} 85. Rg7+ {[%clk 0:00:35]} 85... Kh6 {[%clk 0:00:22.2]} 86. Qh8#
{[%clk 0:00:36.6]} 1-0